bitfinex-derivatives/quotes_BTCF0:USTF0_20250422
["timestamp","ask_amount","ask_price","bid_price","bid_amount"]
[1745284280840,0.192,87727.0,87726.0,0.1814871]
[1745284281046,0.19208,87727.0,87726.0,0.2465871]
[1745284281228,0.19208,87727.0,87726.0,0.2485871]
[1745284285540,0.192,87727.0,87726.0,0.2485871]
[1745284285743,0.19208,87727.0,87726.0,0.2485871]
[1745284286838,0.19208,87727.0,87726.0,0.3485871]
[1745284287038,0.19208,87727.0,87726.0,0.2485871]
[1745284288436,0.1329465,87727.0,87726.0,0.2485871]
[1745284288643,0.00017095,87732.0,87731.0,0.1139825]
[1745284288843,0.00017095,87732.0,87731.0,0.5668625]
[1745284289141,5e-08,87749.0,87748.0,0.1139604]
[1745284289447,5e-08,87749.0,87748.0,0.4747604]
[1745284289644,8.005e-05,87749.0,87748.0,0.4747604]
[1745284289851,8.005e-05,87749.0,87748.0,0.6022604]
[1745284290146,0.09810695,87749.0,87748.0,0.6022604]
[1745284290449,5e-08,87749.0,87748.0,0.6022604]
[1745284290649,5e-08,87749.0,87748.0,0.6122604]
[1745284290950,5e-08,87749.0,87748.0,0.9730604]
[1745284291155,0.10671145,87749.0,87748.0,0.9730604]
[1745284291445,5e-08,87749.0,87748.0,0.9790604]
[1745284292139,5e-08,87749.0,87748.0,0.9151604]
[1745284292342,5e-08,87749.0,87748.0,0.1199604]
[1745284292848,8.005e-05,87749.0,87748.0,0.1199604]
[1745284293953,8.005e-05,87749.0,87748.0,0.1179604]
[1745284294146,8.005e-05,87749.0,87748.0,0.1169604]
[1745284295150,8.005e-05,87749.0,87748.0,0.1159604]
[1745284295449,8.005e-05,87749.0,87748.0,0.1149604]
[1745284296264,8.005e-05,87749.0,87748.0,0.1812604]
[1745284296847,5e-08,87749.0,87748.0,0.1812604]
[1745284297044,0.1973,87754.0,87753.0,0.1139539]
[1745284297842,0.1973,87754.0,87753.0,0.1787539]
[1745284298049,0.3893,87754.0,87753.0,0.1787539]
[1745284298250,0.3893,87754.0,87753.0,0.1797539]
[1745284298643,0.3893,87754.0,87753.0,0.1807539]
[1745284298953,0.3893,87754.0,87753.0,0.1817539]
[1745284300555,0.3219,87754.0,87753.0,0.1817539]
[1745284300744,0.192,87754.0,87753.0,0.1817539]
[1745284300950,0.19208,87754.0,87753.0,0.1817539]
[1745284301254,8e-05,87754.0,87753.0,0.1817539]
[1745284301744,0.00011576,87756.0,87755.0,0.1139513]
[1745284301947,0.00011576,87756.0,87755.0,0.5665113]
[1745284302147,0.19211576,87756.0,87755.0,0.5665113]
[1745284304250,0.19211576,87756.0,87755.0,0.5675113]
[1745284304459,0.19211576,87756.0,87755.0,0.5695113]
[1745284306261,0.47651481,87792.0,87755.0,0.819512]
[1745284306557,0.47651481,87792.0,87791.0,0.1139046]
[1745284306853,0.47659481,87792.0,87791.0,0.1139046]
[1745284307255,0.66859481,87792.0,87791.0,0.1139046]
[1745284307453,0.67059481,87792.0,87791.0,0.1139046]
[1745284307753,0.55488,87792.0,87791.0,0.12630122]
[1745284307953,0.55688,87792.0,87791.0,0.13471689]
[1745284308548,0.55888,87792.0,87791.0,0.13471689]
[1745284308756,0.55888,87792.0,87791.0,0.12232027]
[1745284309846,0.68498,87792.0,87791.0,0.12232027]
[1745284310049,0.68298,87792.0,87791.0,0.12232027]
[1745284310449,0.68198,87792.0,87791.0,0.12232027]
[1745284310649,0.32118,87792.0,87791.0,0.12232027]
[1745284311057,0.3211,87792.0,87791.0,0.12232027]
[1745284311271,0.32118,87792.0,87791.0,0.18582027]
[1745284312459,0.3211,87792.0,87791.0,0.18582027]
[1745284312757,0.32118,87792.0,87791.0,0.18582027]
[1745284313152,0.00010801,87799.0,87798.0,0.1138955]
[1745284313454,0.10517062,87800.0,87799.0,0.1138942]
[1745284313949,0.16447062,87800.0,87799.0,0.2362942]
[1745284314258,0.16447062,87800.0,87799.0,0.5354942]
[1745284314558,0.10517062,87800.0,87799.0,0.5354942]
[1745284314958,0.10517062,87800.0,87799.0,0.55086815]
[1745284315161,0.10525062,87800.0,87799.0,0.55086815]
[1745284315552,0.05627874,87810.0,87809.0,0.1138812]
[1745284316151,0.11571481,87812.0,87808.0,0.1214]
[1745284316355,2e-08,87813.0,87812.0,0.1138773]
[1745284316560,0.14444211,87819.0,87818.0,0.1138695]
[1745284317258,0.14444211,87819.0,87818.0,0.2350695]
[1745284319962,0.25831411,87819.0,87816.0,0.1138715]
[1745284320162,0.14444211,87819.0,87818.0,0.1138695]
[1745284320661,0.16722739,87825.0,87824.0,0.1138618]
[1745284321262,0.16730739,87825.0,87824.0,0.2361618]
[1745284321454,0.16722739,87825.0,87824.0,0.2982618]
[1745284321658,0.16730739,87825.0,87824.0,0.2982618]
[1745284322363,0.16730739,87825.0,87824.0,0.2361618]
[1745284322869,0.16830739,87825.0,87824.0,0.2361618]
[1745284323260,0.16830739,87825.0,87824.0,0.2371618]
[1745284323771,0.16730739,87825.0,87824.0,0.2381618]
[1745284324462,0.005,87827.0,87826.0,0.1138592]
[1745284324670,0.005,87827.0,87826.0,0.4746592]
[1745284325163,0.005,87827.0,87826.0,0.5660992]
[1745284325164,0.00508,87827.0,87826.0,0.5660992]
[1745284326162,0.0577,87834.0,87833.0,0.1138501]
[1745284327771,0.00010801,87839.0,87834.0,0.1138488]
[1745284328072,0.0643,87836.0,87834.0,0.2355488]
[1745284328272,0.36088,87835.0,87834.0,0.2355488]
[1745284328468,0.3608,87835.0,87834.0,0.2355488]
[1745284328668,0.36088,87835.0,87834.0,0.2355488]
[1745284328869,0.06230801,87841.0,87840.0,0.113841]
[1745284328870,0.00010801,87841.0,87840.0,0.113841]
[1745284329068,0.0643,87860.0,87859.0,0.1138164]
[1745284329264,0.062,87861.0,87860.0,0.1138151]
[1745284330669,0.063,87861.0,87860.0,0.1138151]
[1745284330874,0.065,87861.0,87860.0,0.1138151]
[1745284331480,0.064,87861.0,87860.0,0.1138151]
[1745284332870,0.0641304,87861.0,87860.0,0.1138151]
[1745284333373,0.0021304,87861.0,87860.0,0.1138151]
[1745284333575,0.0021304,87861.0,87860.0,0.1774151]
[1745284333783,8e-08,87864.0,87863.0,0.1138112]
[1745284333975,0.03392529,87880.0,87863.0,0.113812]
[1745284334176,0.03392529,87880.0,87879.0,0.4745905]
[1745284334772,0.03400529,87880.0,87879.0,0.1127905]
[1745284334967,0.04400529,87880.0,87879.0,0.1127905]
[1745284335275,8e-05,87880.0,87879.0,0.12505093]
[1745284336683,0.00208,87880.0,87879.0,0.18465093]
[1745284337472,0.00208,87880.0,87872.0,0.3608]
[1745284337473,0.726672,87880.0,87872.0,0.3608]
[1745284337669,0.1137923,87878.0,87872.0,0.4176996]
[1745284337868,0.1211,87877.0,87876.0,0.1137944]
[1745284338269,0.23489601,87877.0,87876.0,0.1137944]
[1745284338469,0.34868911,87877.0,87876.0,0.1137944]
[1745284338876,0.1137957,87875.0,87874.0,0.12580407]
[1745284339382,0.2275957,87875.0,87874.0,0.12580407]
[1745284340283,0.2285957,87875.0,87874.0,0.12580407]
[1745284340677,0.2220957,87875.0,87874.0,0.12580407]
[1745284343282,0.5520957,87875.0,87874.0,0.12580407]
[1745284343486,0.4382957,87875.0,87874.0,0.12580407]
[1745284344385,0.7682957,87875.0,87874.0,0.12580407]
[1745284345378,0.1082957,87875.0,87874.0,0.01200787]
[1745284345578,0.1137983,87873.0,87872.0,0.4745991]
[1745284345978,1.2175983,87873.0,87872.0,0.3608]
[1745284346483,1.2175983,87873.0,87872.0,0.4745996]
[1745284346784,1.2175983,87873.0,87872.0,0.37316291]
[1745284346986,1.2175983,87873.0,87872.0,0.48696251]
[1745284347376,1.61230732,87873.0,87872.0,0.01236291]
[1745284347579,1.61230732,87873.0,87871.0,0.00017074]
[1745284347580,0.1137996,87872.0,87871.0,0.00017074]
[1745284347779,0.2893996,87872.0,87871.0,0.00017074]
[1745284348088,1.3391996,87872.0,87871.0,0.00017074]
[1745284348985,1.3401996,87872.0,87871.0,0.00017074]
[1745284349489,1.3411996,87872.0,87871.0,0.00017074]
[1745284350082,1.3411996,87872.0,87841.0,0.3608]
[1745284350083,2.02210902,87872.0,87841.0,0.3608]
[1745284350392,0.113832,87847.0,87846.0,0.2347327]
[1745284350584,0.99,87847.0,87846.0,0.24307983]
[1745284350794,0.99,87847.0,87846.0,0.25509319]
[1745284350983,0.99008,87847.0,87846.0,0.25509319]
[1745284352094,0.99008,87847.0,87846.0,0.25709319]
[1745284352895,0.99008,87847.0,87846.0,0.25809319]
[1745284353485,0.99,87847.0,87846.0,0.25809319]
[1745284353686,0.99008,87847.0,87846.0,0.25709319]
[1745284353980,1.113912,87847.0,87846.0,0.02236049]
[1745284354390,1.103912,87847.0,87846.0,0.02336049]
[1745284354584,1.103912,87847.0,87846.0,0.01501336]
[1745284354785,1.221912,87847.0,87846.0,0.13481336]
[1745284354993,1.221912,87847.0,87846.0,0.13681336]
[1745284355292,1.221912,87847.0,87846.0,0.13481336]
[1745284355592,1.162312,87847.0,87846.0,0.13381336]
[1745284356093,1.162232,87847.0,87846.0,0.25616799]
[1745284356389,1.103912,87847.0,87846.0,0.25616799]
[1745284356593,1.103912,87847.0,87846.0,0.31786799]
[1745284356789,0.99008,87847.0,87846.0,0.31686799]
[1745284356990,1.103832,87847.0,87846.0,0.31686799]
[1745284357185,1.103912,87847.0,87846.0,0.31686799]
[1745284358300,0.96941276,87847.0,87846.0,0.31686799]
[1745284358594,0.99983276,87847.0,87846.0,0.31686799]
[1745284358893,0.99991276,87847.0,87846.0,0.31686799]
[1745284359494,0.99983276,87847.0,87846.0,0.31686799]
[1745284359692,0.99991276,87847.0,87846.0,0.31686799]
[1745284360092,0.99991276,87847.0,87846.0,0.31786799]
[1745284360792,0.99991276,87847.0,87846.0,0.31886799]
[1745284360992,0.99983276,87847.0,87846.0,0.31886799]
[1745284361190,0.99991276,87847.0,87846.0,0.31886799]
[1745284361691,0.99991276,87847.0,87846.0,0.43270399]
[1745284362796,0.99991276,87847.0,87846.0,0.43370399]
[1745284363199,0.99991276,87847.0,87846.0,0.43470399]
[1745284364591,0.99991276,87847.0,87846.0,0.43270399]
[1745284364900,0.99991276,87847.0,87846.0,0.31886799]
[1745284365091,0.99991276,87847.0,87846.0,0.32086799]
[1745284365993,0.99983276,87847.0,87846.0,0.32086799]
[1745284366799,0.99991276,87847.0,87846.0,0.32086799]
[1745284367692,0.99991276,87847.0,87846.0,0.31886799]
[1745284367897,0.99991276,87847.0,87846.0,0.32086799]
[1745284368993,0.99991276,87847.0,87846.0,0.31986799]
[1745284370188,0.99991276,87847.0,87846.0,0.31886799]
[1745284370900,0.99991276,87847.0,87846.0,0.31786799]
[1745284371093,0.99991276,87847.0,87846.0,0.31886799]
[1745284373801,1.11374476,87847.0,87846.0,0.20503479]
[1745284373986,0.99991276,87847.0,87846.0,0.25716799]
[1745284374391,1.06261276,87847.0,87846.0,0.25716799]
[1745284375195,1.17644476,87847.0,87846.0,0.14233479]
[1745284375497,1.17644476,87847.0,87846.0,0.25716799]
[1745284376598,1.17644476,87847.0,87846.0,0.02253479]
[1745284377289,1.17644476,87847.0,87846.0,0.02153479]
[1745284377489,1.17644476,87847.0,87846.0,0.13536799]
[1745284377798,1.17644476,87847.0,87846.0,0.26026799]
[1745284377991,1.06261276,87847.0,87846.0,0.26026799]
[1745284378491,1.06261276,87847.0,87846.0,0.25926799]
[1745284379093,1.17636476,87847.0,87846.0,0.25926799]
[1745284379294,1.17644476,87847.0,87846.0,0.25926799]
[1745284380296,1.17644476,87847.0,87846.0,0.19706799]
[1745284380805,1.06261276,87847.0,87846.0,0.13436799]
[1745284381001,0.99991276,87847.0,87846.0,0.25716799]
[1745284381200,0.99991276,87847.0,87846.0,0.32066799]
[1745284381406,0.99991276,87847.0,87846.0,0.32166799]
[1745284383300,0.99991276,87847.0,87846.0,0.32266799]
[1745284385910,0.99991276,87847.0,87846.0,0.32166799]
[1745284386207,0.99991276,87847.0,87846.0,0.26096799]
[1745284386601,0.99991276,87847.0,87846.0,0.13636799]
[1745284386797,0.99991276,87847.0,87846.0,0.13736799]
[1745284386998,1.12631276,87847.0,87846.0,0.13736799]
[1745284387204,1.12631276,87847.0,87846.0,0.13636799]
[1745284387509,1.24014476,87847.0,87846.0,0.13536799]
[1745284387806,1.35398076,87847.0,87846.0,0.02153479]
[1745284388004,1.35398076,87847.0,87846.0,0.02253479]
[1745284388808,1.35398076,87847.0,87846.0,0.01401336]
[1745284389001,1.35398076,87847.0,87846.0,0.002]
[1745284389909,1.35398076,87847.0,87846.0,0.001]
[1745284390103,0.1138423,87839.0,87835.0,0.53449882]
[1745284390411,1.08317506,87839.0,87838.0,0.11401434]
[1745284390807,1.08317506,87839.0,87838.0,0.12910059]
[1745284391008,1.20297506,87839.0,87838.0,0.12910059]
[1745284391208,1.08913276,87839.0,87838.0,0.25740059]
[1745284391400,1.08913276,87839.0,87838.0,0.25840059]
[1745284392308,1.20297506,87839.0,87838.0,0.25840059]
[1745284395809,1.14377506,87839.0,87838.0,0.25840059]
[1745284397808,1.14385506,87839.0,87838.0,0.25840059]
[1745284398621,0.96941276,87839.0,87838.0,0.25840059]
[1745284399008,0.96933276,87839.0,87838.0,0.25840059]
[1745284399316,0.96941276,87839.0,87838.0,0.25840059]
[1745284404022,1.08325506,87839.0,87838.0,0.14455699]
[1745284404530,1.08325506,87839.0,87838.0,0.01725699]
[1745284404715,1.13995506,87839.0,87838.0,0.01725699]
[1745284404918,1.13995506,87839.0,87838.0,0.13110059]
[1745284405111,1.02611276,87839.0,87838.0,0.13110059]
[1745284405420,0.96941276,87839.0,87838.0,0.61110059]
[1745284406025,0.96933276,87839.0,87838.0,0.61110059]
[1745284406414,0.96941276,87839.0,87838.0,0.61110059]
[1745284406613,0.96933276,87839.0,87838.0,0.61110059]
[1745284406824,0.96941276,87839.0,87838.0,0.61110059]
[1745284412926,1.08325506,87839.0,87838.0,0.49190059]
[1745284413427,1.08325506,87839.0,87838.0,0.61390059]
[1745284414027,1.14095506,87839.0,87838.0,0.07995699]
[1745284414223,1.20335506,87839.0,87838.0,0.19380059]
[1745284414618,1.20335506,87839.0,87838.0,0.13110059]
[1745284417724,1.31719906,87839.0,87838.0,0.13110059]
[1745284417921,1.31719906,87839.0,87838.0,0.01725699]
[1745284418121,1.31719906,87839.0,87838.0,0.13110059]
[1745284418320,1.31719906,87839.0,87838.0,0.01725699]
[1745284418821,1.31719906,87839.0,87838.0,0.13110059]
[1745284420325,1.31719906,87839.0,87838.0,0.01725699]
[1745284420535,1.33719906,87839.0,87838.0,0.01725699]
[1745284420732,1.31719906,87839.0,87838.0,0.01725699]
[1745284420932,1.31719906,87839.0,87838.0,0.01625699]
[1745284421126,1.31719906,87839.0,87838.0,0.12910059]
[1745284421520,1.31719906,87839.0,87838.0,0.00017074]
[1745284422615,0.1707822,87831.0,87830.0,0.1138535]
[1745284422820,0.1138553,87829.0,87828.0,0.3608]
[1745284423020,1.08318806,87829.0,87828.0,0.3608]
[1745284423435,1.20108806,87829.0,87828.0,0.3608]
[1745284423828,1.20108806,87829.0,87828.0,0.4746566]
[1745284424022,1.20108806,87829.0,87828.0,0.49077576]
[1745284424429,1.20108806,87829.0,87828.0,0.37691916]
[1745284424726,1.20108806,87829.0,87828.0,0.01611916]
[1745284425027,1.20108806,87829.0,87825.0,0.0085455]
[1745284425028,0.0569295,87827.0,87822.0,0.0622]
[1745284425332,0.1138631,87823.0,87822.0,0.2329955]
[1745284425535,1.08319586,87823.0,87822.0,0.2329955]
[1745284425733,1.08319586,87823.0,87822.0,0.13434948]
[1745284426232,1.08319586,87823.0,87822.0,0.13634948]
[1745284426627,1.08319586,87823.0,87822.0,0.13534948]
[1745284426827,0.96933276,87823.0,87822.0,0.13734948]
[1745284427131,1.08319586,87823.0,87822.0,0.13734948]
[1745284429124,1.08319586,87823.0,87822.0,0.14605912]
[1745284429319,1.08319586,87823.0,87822.0,0.50685912]
[1745284431833,0.96933276,87823.0,87822.0,0.50685912]
[1745284435340,0.96941276,87823.0,87822.0,0.50685912]
[1745284436038,0.96941276,87823.0,87822.0,0.51685912]
[1745284436238,0.96941276,87823.0,87822.0,0.50685912]
[1745284436931,0.96941276,87823.0,87822.0,0.51685912]
[1745284437331,0.96941276,87823.0,87822.0,0.50685912]
[1745284444448,1.08327586,87823.0,87822.0,0.38772742]
[1745284444747,1.25857586,87823.0,87822.0,0.38772742]
[1745284446040,1.25857586,87823.0,87822.0,0.45162742]
[1745284446851,1.25857586,87823.0,87822.0,0.50159182]
[1745284447252,1.25857586,87823.0,87822.0,0.49288218]
[1745284447450,1.25857586,87823.0,87822.0,0.13208218]
[1745284447749,0.0569347,87819.0,87816.0,0.17944858]
[1745284447944,0.1138708,87817.0,87816.0,0.1708053]
[1745284448144,1.08320356,87817.0,87816.0,0.18501143]
[1745284448355,1.20330356,87817.0,87816.0,0.18501143]
[1745284448750,1.20330356,87817.0,87816.0,0.01420613]
[1745284448956,0.1138747,87814.0,87813.0,0.17369882]
[1745284449159,1.08320746,87814.0,87813.0,0.28757432]
[1745284449357,1.08320746,87814.0,87813.0,0.1138755]
[1745284449858,1.08320746,87814.0,87813.0,0.1733755]
[1745284450062,0.96933276,87814.0,87813.0,0.18780229]
[1745284450357,0.96933276,87814.0,87813.0,0.24850229]
[1745284450754,0.96941276,87814.0,87813.0,0.24850229]
[1745284455358,0.89583019,87814.0,87813.0,1.01313829]
[1745284455565,0.80120471,87814.0,87813.0,1.01313829]
[1745284455756,0.80128471,87814.0,87813.0,1.01313829]
[1745284456163,0.76141891,87814.0,87813.0,1.20513829]
[1745284456365,0.44575471,87814.0,87813.0,1.20513829]
[1745284456658,0.36553621,87814.0,87813.0,1.20513829]
[1745284456864,0.33290221,87814.0,87813.0,0.95513829]
[1745284457372,0.28301971,87814.0,87813.0,0.95513829]
[1745284457868,0.25002301,87814.0,87813.0,0.95513829]
[1745284458072,0.04305181,87814.0,87813.0,0.95513829]
[1745284458271,0.16635236,87836.0,87835.0,0.1138475]
[1745284458460,0.16635236,87836.0,87835.0,0.4746475]
[1745284459071,0.16635236,87836.0,87835.0,0.5990475]
[1745284459566,0.16735236,87836.0,87835.0,0.5990475]
[1745284460656,0.11706435,87836.0,87835.0,0.5990475]
[1745284461163,0.00108,87836.0,87835.0,0.5990475]
[1745284461570,0.001,87836.0,87835.0,0.5990475]
[1745284461772,0.00108,87836.0,87835.0,0.5990475]
[1745284464573,0.0294201,87847.0,87846.0,0.1138332]
[1745284464765,0.00741782,87847.0,87846.0,0.5653932]
[1745284465171,0.00749782,87847.0,87846.0,0.7573932]
[1745284465870,0.00949782,87847.0,87846.0,0.8827932]
[1745284466674,0.00749782,87847.0,87846.0,0.8857932]
[1745284467169,0.00749782,87847.0,87846.0,0.6937932]
[1745284471378,5.778e-05,87855.0,87854.0,0.1138229]
[1745284471583,5.778e-05,87855.0,87854.0,0.4946229]
[1745284471781,0.00013778,87855.0,87854.0,0.4946229]
[1745284471970,5.778e-05,87855.0,87854.0,0.5046229]
[1745284472279,0.00013778,87855.0,87854.0,0.8195229]
[1745284472778,0.00013778,87855.0,87854.0,0.8215229]
[1745284474070,0.00013778,87855.0,87854.0,0.7915229]
[1745284475070,0.11395938,87855.0,87854.0,0.4766229]
[1745284475270,0.11395938,87855.0,87854.0,0.3628]
[1745284475271,0.12395938,87855.0,87854.0,0.3628]
[1745284475468,0.113832,87847.0,87846.0,0.36097074]
[1745284475677,0.203832,87847.0,87846.0,0.36097074]
[1745284475876,0.317668,87847.0,87846.0,0.36097074]
[1745284476073,0.203832,87847.0,87846.0,0.11400394]
[1745284476273,0.333232,87847.0,87846.0,0.11400394]
[1745284476879,0.447068,87847.0,87846.0,0.11600394]
[1745284477078,0.333232,87847.0,87846.0,0.11600394]
[1745284477378,0.243232,87847.0,87846.0,0.11600394]
[1745284477576,0.243232,87847.0,87846.0,0.11800394]
[1745284481282,0.12948,87847.0,87846.0,0.11800394]
[1745284481484,0.1294,87847.0,87846.0,0.11800394]
[1745284481687,0.243312,87847.0,87846.0,0.11800394]
[1745284482785,0.243312,87847.0,87846.0,0.00417074]
[1745284483381,0.253312,87847.0,87846.0,0.00317074]
[1745284483577,0.243312,87847.0,87846.0,0.00317074]
[1745284483975,0.243312,87847.0,87846.0,0.00217074]
[1745284484586,0.243312,87847.0,87846.0,0.00117074]
[1745284484882,0.244312,87847.0,87846.0,0.11500394]
[1745284485088,0.245312,87847.0,87846.0,0.11400394]
[1745284486691,0.244312,87847.0,87846.0,0.11400394]
[1745284486886,0.245312,87847.0,87846.0,0.11400394]
[1745284487280,0.245312,87847.0,87846.0,0.00017074]
[1745284487596,0.1138462,87836.0,87835.0,0.3608]
[1745284489287,0.2969462,87836.0,87835.0,0.3608]
[1745284489793,0.2969462,87836.0,87835.0,0.4746475]
[1745284490683,0.2969462,87836.0,87835.0,0.4756475]
[1745284491688,0.2969462,87836.0,87835.0,0.3618]
[1745284491992,0.2969462,87836.0,87835.0,0.4756475]
[1745284492888,0.2969462,87836.0,87835.0,0.3618]
[1745284493298,0.2969462,87836.0,87835.0,0.001]
[1745284493980,0.69165522,87836.0,87835.0,0.001]
[1745284494189,0.80550322,87836.0,87835.0,0.001]
[1745284495103,0.80550322,87836.0,87819.0,0.3608]
[1745284495104,1.09165702,87836.0,87819.0,0.3608]
[1745284495393,0.113867,87820.0,87819.0,0.3608]
[1745284495588,0.393867,87820.0,87819.0,0.3608]
[1745284495794,0.507735,87820.0,87819.0,0.3608]
[1745284496192,0.632235,87820.0,87819.0,0.3608]
[1745284496788,0.632235,87820.0,87819.0,0.3618]
[1745284496996,0.632235,87820.0,87819.0,0.3638]
[1745284497290,1.02694402,87820.0,87819.0,0.3638]
[1745284497491,1.02694402,87820.0,87819.0,0.3628]
[1745284497697,1.02694402,87820.0,87819.0,0.3648]
[1745284497892,1.02694402,87820.0,87812.0,0.00855572]
[1745284497893,0.113876,87813.0,87812.0,0.00855572]
[1745284498099,0.113876,87813.0,87812.0,0.0645]
[1745284498798,0.235176,87813.0,87812.0,0.0645]
[1745284498989,0.235176,87813.0,87812.0,0.0675]
[1745284499998,0.235176,87813.0,87812.0,0.0705]
[1745284500200,0.62988502,87813.0,87812.0,0.0705]
[1745284501094,0.62988502,87813.0,87812.0,0.1303]
[1745284501299,0.50858502,87813.0,87812.0,0.13892493]
[1745284501505,0.50866502,87813.0,87812.0,0.31440223]
[1745284502996,0.50858502,87813.0,87812.0,0.31440223]
[1745284503587,0.39470902,87813.0,87812.0,0.31440223]
[1745284503795,8e-05,87813.0,87812.0,0.56440223]
[1745284503997,0.0569341,87820.0,87819.0,0.113867]
[1745284504396,0.1196,87837.0,87819.0,0.113867]
[1745284504397,0.1672911,87827.0,87826.0,0.1138579]
[1745284504597,0.05693,87827.0,87826.0,0.1138579]
[1745284505104,0.05701,87827.0,87826.0,0.2365579]
[1745284505495,8e-05,87827.0,87826.0,0.2365579]
[1745284505890,0.1138579,87827.0,87826.0,0.2365579]
[1745284506295,0.1139379,87827.0,87826.0,0.2375579]
[1745284506996,8e-05,87827.0,87826.0,0.2375579]
[1745284507196,8e-05,87827.0,87826.0,0.2385579]
[1745284508096,0.00017074,87828.0,87827.0,0.1138579]
[1745284508598,0.00017074,87828.0,87827.0,0.2384579]
[1745284509198,0.00025074,87828.0,87827.0,0.2384579]
[1745284509400,0.00025074,87828.0,87827.0,0.2394579]
[1745284510118,0.00017074,87828.0,87827.0,0.6033179]
[1745284510402,0.00025074,87828.0,87827.0,0.6043179]
[1745284510602,0.00017074,87828.0,87827.0,0.6043179]
[1745284510799,0.00025074,87828.0,87827.0,0.3543179]
[1745284511101,0.00017074,87828.0,87827.0,0.5463179]
[1745284511296,0.00025074,87828.0,87827.0,0.5463179]
[1745284511696,0.00025074,87828.0,87827.0,0.7963179]
[1745284511898,0.00025074,87828.0,87827.0,0.5463179]
[1745284512098,0.00017074,87828.0,87827.0,0.5463179]
[1745284512302,0.00025074,87828.0,87827.0,0.5463179]
[1745284514100,4e-08,87828.0,87827.0,0.5563179]
[1745284514295,4e-08,87828.0,87827.0,0.5663179]
[1745284516205,4e-08,87828.0,87827.0,0.3743179]
[1745284517111,4e-08,87828.0,87827.0,0.2504579]
[1745284517313,4e-08,87828.0,87827.0,0.2404579]
[1745284519104,0.056914,87851.0,87827.0,0.2404579]
[1745284519105,0.00026573,87868.0,87867.0,0.113806]
[1745284519304,0.09210816,87869.0,87868.0,0.1138047]
[1745284519509,0.05028989,87869.0,87868.0,0.1138047]
[1745284519714,8e-05,87869.0,87868.0,0.2041247]
[1745284520009,0.1731205,87882.0,87874.0,0.113797]
[1745284520206,0.00017074,87877.0,87874.0,0.48305903]
[1745284520412,0.00017074,87877.0,87874.0,0.50145599]
[1745284520711,0.14456119,87875.0,87874.0,0.50145599]
[1745284520912,0.14456119,87875.0,87874.0,0.64134465]
[1745284521704,0.03858691,87875.0,87874.0,0.64134465]
[1745284522003,0.03240882,87875.0,87874.0,1.04500032]
[1745284522206,0.03240882,87875.0,87874.0,0.75500032]
[1745284522207,0.03248882,87875.0,87874.0,0.75500032]
[1745284522713,0.00108,87875.0,87874.0,0.75500032]
[1745284524007,0.001,87875.0,87874.0,0.75500032]
[1745284524207,0.00108,87875.0,87874.0,0.75500032]
[1745284524407,1e-07,87875.0,87874.0,0.75500032]
[1745284524608,4e-08,87877.0,87876.0,0.1137944]
[1745284524808,4e-08,87877.0,87876.0,0.48993874]
[1745284525121,4e-08,87877.0,87876.0,0.60373474]
[1745284525717,8.004e-05,87877.0,87876.0,0.60373474]
[1745284526327,1e-08,87897.0,87896.0,0.1137685]
[1745284526613,0.09714591,87944.0,87906.0,0.00170624]
[1745284526801,0.09714591,87944.0,87943.0,0.1137077]
[1745284526802,0.05087988,87944.0,87943.0,0.1137077]
[1745284527002,0.05087988,87944.0,87935.0,0.056859]
[1745284527003,0.41167988,87944.0,87935.0,0.09032]
[1745284527206,0.41167988,87944.0,87935.0,0.192]
[1745284527207,0.1137167,87936.0,87935.0,0.192]
[1745284527417,0.05095988,87944.0,87943.0,0.1137077]
[1745284528006,0.001,87944.0,87943.0,0.2274157]
[1745284528207,0.00108,87944.0,87943.0,0.4194157]
[1745284528410,0.001,87944.0,87943.0,0.4194157]
[1745284528610,0.00108,87944.0,87943.0,0.4374157]
[1745284528815,0.00108,87944.0,87943.0,0.3037077]
[1745284529111,0.00108,87944.0,87943.0,0.1117077]
[1745284529310,0.00108,87944.0,87943.0,0.2254157]
[1745284529509,0.001,87944.0,87943.0,0.2254157]
[1745284529710,0.00108,87944.0,87943.0,0.2254157]
[1745284530213,0.04776675,87964.0,87943.0,0.232108]
[1745284530409,0.04776675,87964.0,87963.0,0.1136818]
[1745284530806,0.04784675,87964.0,87963.0,0.1136818]
[1745284531517,0.16452725,87964.0,87963.0,0.1136818]
[1745284532014,0.05184675,87964.0,87963.0,0.1136818]
[1745284532512,0.0568409,87963.0,87962.0,0.1136818]
[1745284533219,0.1136909,87956.0,87955.0,0.00017053]
[1745284533408,0.3736909,87956.0,87955.0,0.00017053]
[1745284533609,0.3608,87984.0,87956.0,0.0568454]
[1745284533805,0.36023056,87992.0,87991.0,0.1136457]
[1745284534017,0.0611,87998.0,87997.0,0.1116379]
[1745284534314,0.1668,88000.0,87999.0,0.1136353]
[1745284534816,0.16688,88000.0,87999.0,0.1116353]
[1745284535012,0.16688,88000.0,87999.0,0.1136353]
[1745284535204,0.10758,88000.0,87999.0,0.1116353]
[1745284535517,0.1075,88000.0,87999.0,0.1096353]
[1745284535717,0.10758,88000.0,87999.0,0.1096353]
[1745284536107,0.10758,88000.0,87999.0,0.2232713]
[1745284536311,0.10958,88000.0,87999.0,0.2877713]
[1745284536917,0.1095,88000.0,87999.0,0.2877713]
[1745284537114,0.10758,88000.0,87999.0,0.2877713]
[1745284537311,0.36090801,88021.0,88020.0,0.1136082]
[1745284537312,0.00010801,88021.0,88020.0,0.1136082]
[1745284537515,0.00014581,88033.0,88020.0,0.1136082]
[1745284537516,0.0567886,88044.0,88020.0,0.564648]
[1745284537818,0.0591,88040.0,88034.0,0.1135902]
[1745284538014,0.36090801,88059.0,88034.0,0.1135902]
[1745284538215,0.3608,88050.0,88034.0,0.4191822]
[1745284538520,0.0591,88049.0,88034.0,0.4191822]
[1745284538814,8e-05,88035.0,88034.0,0.4191822]
[1745284539015,0.0591,88049.0,88034.0,0.192]
[1745284539215,0.1135798,88043.0,88040.0,0.1135817]
[1745284539520,0.1135889,88035.0,88034.0,0.001]
[1745284539909,0.2347804,88042.0,88041.0,0.1135811]
[1745284540418,0.23981532,88042.0,88041.0,0.1135811]
[1745284540608,0.12623492,88042.0,88041.0,0.1135811]
[1745284541212,0.1212,88042.0,88041.0,0.1135811]
[1745284541414,0.1212,88042.0,88041.0,0.1766811]
[1745284541614,0.1212,88042.0,88041.0,0.2364811]
[1745284541615,0.06218,88042.0,88041.0,0.2364811]
[1745284541913,0.32136601,88050.0,88049.0,0.1135708]
[1745284542315,0.32640093,88050.0,88049.0,0.1135708]
[1745284542511,0.43997043,88050.0,88049.0,0.1135708]
[1745284543119,0.1135798,88042.0,88041.0,0.11674891]
[1745284543320,0.1135798,88042.0,88041.0,0.17353911]
[1745284543519,0.11861472,88042.0,88041.0,0.17253911]
[1745284544021,0.47941472,88042.0,88041.0,0.17053911]